bitfinex-derivatives/quotes_ETHF0:USTF0_20260306
["timestamp","ask_amount","ask_price","bid_price","bid_amount"]
[1772771930174,0.54027816,2072.4,2071.2,0.54848905]
[1772771938476,0.54027816,2072.3,2071.5,0.54848905]
[1772771940883,0.58405342,2072.1,2071.5,0.54848905]
[1772771941879,0.58405342,2072.1,2071.0,1.82282369]
[1772771942081,0.58405342,2072.1,2071.1,0.58877259]
[1772771942381,0.58405342,2072.1,2071.4,1.58141369]
[1772771942586,0.58405342,2072.3,2071.7,0.58877259]
[1772771943889,0.58405342,2072.3,2071.5,0.58877259]
[1772771956094,0.58405342,2072.6,2071.6,0.58877259]
[1772771956695,3.99330459,2072.8,2071.6,0.58877259]
[1772771956696,0.58405342,2072.4,2071.6,0.58877259]
[1772771958899,0.58405342,2072.2,2071.6,0.58877259]
[1772771959389,0.58405342,2072.2,2071.0,0.58877259]
[1772771959390,0.58405342,2072.0,2071.0,0.58877259]
[1772771959590,0.58405342,2071.8,2071.0,0.58877259]
[1772771960903,0.58405342,2071.6,2071.0,0.58877259]
[1772771961204,0.5883646,2071.6,2071.0,0.58877259]
[1772771962199,0.5883646,2071.6,2070.2,10.06554277]
[1772771962398,0.58405342,2071.4,2070.1,0.58877259]
[1772771962606,0.00431118,2071.6,2070.1,0.58877259]
[1772771962607,0.58405342,2071.2,2070.1,0.58877259]
[1772771963305,0.58405342,2071.2,2070.1,0.59297048]
[1772771966609,0.58405342,2071.2,2070.4,0.58877259]
[1772771967210,0.58405342,2071.2,2070.6,0.58877259]
[1772771970014,0.58405342,2071.2,2070.4,0.59324259]
[1772771972419,0.58405342,2071.2,2070.6,0.59324259]
[1772771973616,0.5386395,2071.4,2070.6,0.59324259]
[1772771974620,0.5386395,2071.2,2070.4,0.59324259]
[1772771977317,0.5386395,2070.8,2070.2,0.59324259]
[1772771977519,0.5386395,2070.8,2070.1,0.00419789]
[1772771977821,0.5386395,2070.8,2070.1,0.59744048]
[1772771978313,0.5386395,2070.8,2070.5,0.59324259]
[1772771978513,0.5386395,2070.8,2070.2,0.59324259]
[1772771978717,0.5386395,2070.8,2070.1,0.59744048]
[1772771985224,0.5386395,2070.9,2070.1,0.59744048]
[1772771988026,0.5386395,2070.9,2070.1,0.00419789]
[1772771988833,0.5386395,2070.9,2070.1,0.59744048]
[1772771992740,4.53194409,2071.3,2070.1,0.59744048]
[1772771992946,0.5386395,2071.2,2070.1,0.59744048]
[1772771993147,0.5386395,2071.4,2070.3,0.59324259]
[1772771993546,0.5386395,2071.2,2070.3,0.59324259]
[1772771993737,0.5386395,2071.0,2070.3,0.59324259]
[1772771995244,0.5386395,2071.2,2070.3,0.59324259]
[1772771996850,0.5386395,2071.0,2070.1,0.59744048]
[1772771997645,5.98161549,2070.9,2070.1,0.59744048]
[1772771997851,0.5386395,2070.8,2070.1,0.59744048]
[1772772000747,0.5386395,2070.8,2070.1,0.00419789]
[1772772001052,0.5386395,2070.8,2070.1,0.573661]
[1772772001448,0.5386395,2070.8,2070.1,0.00419789]
[1772772001643,0.5584305,2070.6,2070.0,0.01212446]
[1772772001849,0.5584305,2070.6,2069.6,0.56946311]
[1772772002650,0.5584305,2070.6,2069.6,0.57334721]
[1772772003549,0.5584305,2070.6,2069.8,0.56946311]
[1772772005151,0.5584305,2070.6,2069.6,0.57334721]
[1772772005350,0.5584305,2070.4,2069.6,0.57334721]
[1772772005751,0.5584305,2070.4,2069.7,0.56946311]
[1772772006153,0.5584305,2070.6,2069.7,0.56946311]
[1772772006653,0.5584305,2070.6,2070.0,0.56946311]
[1772772006959,0.5584305,2070.8,2070.0,0.56946311]
[1772772017358,0.5584305,2071.0,2070.3,0.56946311]
[1772772020763,0.5584305,2071.0,2070.1,0.56946311]
[1772772026770,0.5584305,2071.0,2069.6,16.01227687]
[1772772026771,0.5584305,2070.1,2069.1,0.56946311]
[1772772026968,0.5584305,2070.1,2068.9,10.11486557]
[1772772026969,0.5584305,2069.9,2068.8,0.56946311]
[1772772027172,0.5584305,2069.7,2068.8,0.56946311]
[1772772027666,0.5584305,2069.6,2068.2,0.56946311]
[1772772027869,0.5584305,2069.2,2068.0,0.56946311]
[1772772028071,0.5584305,2069.0,2068.3,0.56946311]
[1772772028875,0.5584305,2069.0,2068.3,0.57304884]
[1772772029173,0.5879467,2069.6,2068.3,0.57304884]
[1772772030273,0.5879467,2069.6,2068.3,0.18648884]
[1772772033777,0.53960461,2069.4,2068.3,0.00358573]
[1772772034679,0.53960461,2069.3,2068.3,0.00358573]
[1772772034976,0.53960461,2069.3,2068.3,0.58239758]
[1772772036581,0.53960461,2069.3,2068.3,0.00358573]
[1772772036776,0.53960461,2069.3,2067.9,0.57881185]
[1772772036971,0.53960461,2069.3,2067.1,17.47088]
[1772772037172,5.94546,2068.7,2066.5,1.49381332]
[1772772037376,0.53960461,2068.4,2066.6,0.57881185]
[1772772037578,0.53960461,2068.2,2066.6,0.57881185]
[1772772037776,0.53960461,2068.0,2066.6,0.58376487]
[1772772038482,0.53960461,2068.0,2066.7,0.57881185]
[1772772038679,0.53960461,2068.0,2066.9,0.57881185]
[1772772039177,0.53960461,2068.0,2066.6,0.00495302]
[1772772039374,0.53960461,2067.7,2066.6,0.00495302]
[1772772039773,0.53960461,2067.7,2066.6,0.58376487]
[1772772039973,0.53960461,2067.7,2066.6,0.00495302]
[1772772040176,0.53960461,2067.7,2066.5,0.91500147]
[1772772040381,0.53960461,2067.6,2066.5,0.43688737]
[1772772040582,0.27760496,2067.5,2065.5,0.08420513]
[1772772040784,0.27760496,2067.5,2065.6,0.57881185]
[1772772041278,0.27760496,2067.5,2066.0,0.57881185]
[1772772041481,0.27760496,2067.7,2066.4,0.57881185]
[1772772041878,0.27760496,2067.7,2066.3,5.95236]
[1772772041879,0.27760496,2067.7,2066.6,0.57881185]
[1772772042683,0.3148939,2068.1,2066.8,0.57881185]
[1772772048880,0.38017858,2067.8,2066.2,0.57881185]
[1772772049281,0.38017858,2067.8,2066.3,0.57881185]
[1772772050080,0.38017858,2067.7,2066.3,0.57881185]
[1772772050488,0.37844469,2067.5,2065.7,0.57881185]
[1772772051592,0.37844469,2066.9,2064.7,6.53569185]
[1772772051888,0.3731205,2066.4,2064.7,0.57881185]
[1772772052196,0.3731205,2066.4,2064.6,5.95718]
[1772772052197,0.3731205,2066.4,2064.9,0.57881185]
[1772772052693,0.37054142,2066.2,2064.9,0.58450435]
[1772772054791,0.36164927,2065.9,2064.9,0.0056925]
[1772772055388,0.36164927,2065.9,2064.9,0.58450435]
[1772772055588,0.36164927,2065.9,2064.9,0.0056925]
[1772772058090,0.36781247,2065.8,2064.9,0.0056925]
[1772772058291,0.36781247,2065.8,2065.0,0.57881185]
[1772772058787,0.36781247,2065.8,2064.9,0.0056925]
[1772772058990,0.36283547,2065.6,2064.1,0.57881185]
[1772772059189,2.25082326,2064.9,2063.5,0.57881185]
[1772772059385,0.36283547,2064.4,2062.8,0.57881185]
[1772772059587,2.61365873,2064.4,2062.8,0.57881185]
[1772772059792,0.36283547,2064.3,2062.8,0.57881185]
[1772772059987,0.36849086,2064.3,2062.8,0.58495709]
[1772772060188,0.36849086,2064.3,2062.8,2.83578035]
[1772772060499,0.36849086,2064.3,2062.9,0.58926798]
[1772772060996,0.36849086,2064.3,2063.1,0.58926798]
[1772772061191,0.3676814,2064.3,2063.1,0.58926798]
[1772772061393,0.36202601,2064.0,2062.8,0.00614524]
[1772772061597,0.36202601,2064.1,2062.8,0.59541322]
[1772772062191,0.26964215,2063.8,2062.8,0.00614524]
[1772772062495,0.26964215,2063.6,2062.8,0.00614524]
[1772772062696,0.26964215,2063.6,2062.5,0.58926798]
[1772772062888,0.26964215,2063.6,2061.9,0.58926798]
[1772772063488,0.26964215,2063.4,2061.9,0.58926798]
[1772772063692,0.26964215,2063.8,2061.9,0.59395457]
[1772772063890,0.26964215,2064.1,2062.4,2.25082326]
[1772772064089,0.26964215,2064.1,2062.6,0.58926798]
[1772772064699,0.2848662,2063.7,2062.3,0.58926798]
[1772772065197,0.2848662,2063.6,2062.3,0.58926798]
[1772772065499,0.2848662,2063.6,2061.9,0.00468659]
[1772772065500,0.28508286,2063.3,2062.0,0.59506482]
[1772772065794,0.2855783,2063.2,2061.9,0.00468659]
[1772772066194,0.30303318,2062.6,2061.3,0.55925832]
[1772772066398,0.30303318,2062.8,2061.3,0.55925832]
[1772772066694,5.96275,2062.7,2061.3,0.55925832]
[1772772066891,0.30303318,2062.4,2061.2,0.93079108]
[1772772067095,0.30303318,2062.4,2061.3,0.55925832]
[1772772067290,0.30303318,2062.9,2061.7,0.55925832]
[1772772067597,0.30303318,2063.4,2061.9,0.55925832]
[1772772067995,0.30303318,2063.0,2061.7,0.55925832]
[1772772068194,0.30303318,2063.3,2061.7,0.55925832]
[1772772068390,0.30911418,2063.3,2061.8,5.96535]
[1772772068590,0.006081,2063.3,2062.4,0.55925832]
[1772772068792,0.30439955,2064.2,2062.6,0.55925832]
[1772772068990,0.30439955,2064.2,2062.8,0.55925832]
[1772772069295,0.30439955,2063.8,2062.8,0.55925832]
[1772772069700,0.30791438,2063.8,2062.8,0.56287951]
[1772772070693,0.00351483,2063.8,2062.8,0.56287951]
[1772772071200,0.36866788,2063.8,2062.8,0.56287951]
[1772772071403,0.36515305,2063.4,2062.6,0.55925832]
[1772772072195,0.36515305,2063.4,2062.3,0.55925832]
[1772772072403,0.46038733,2063.2,2062.3,0.00439078]
[1772772072696,0.46038733,2063.0,2061.8,0.55925832]
[1772772073400,0.45599655,2062.8,2061.8,0.55925832]
[1772772073599,0.45599655,2062.8,2061.6,0.55925832]
[1772772073799,0.45599655,2062.4,2061.6,0.00582916]
[1772772075700,0.45599655,2062.4,2061.2,0.93079108]
[1772772075895,0.45599655,2062.4,2059.7,5.97124]
[1772772075896,0.23813831,2061.8,2059.8,0.55925832]
[1772772076100,0.23813831,2061.4,2059.9,0.55925832]
[1772772076300,0.23813831,2061.4,2060.1,0.55925832]
[1772772076603,0.24425995,2061.4,2060.1,0.56270634]
[1772772078700,0.00612164,2061.4,2060.1,0.56270634]
[1772772078899,0.27845652,2061.4,2060.1,0.56270634]
[1772772079299,0.27233488,2061.2,2060.1,0.56270634]
[1772772079599,0.27233488,2061.2,2060.1,0.00344802]
[1772772079799,0.27233488,2061.2,2060.1,0.56270634]
[1772772080196,0.00612164,2061.4,2060.1,0.56270634]
[1772772080507,0.32166875,2061.4,2060.1,0.56270634]
[1772772080702,0.31554711,2061.2,2060.1,0.56270634]
[1772772081698,0.31554711,2060.8,2060.1,0.00344802]
[1772772081901,0.31554711,2060.6,2059.5,0.55925832]
[1772772082604,0.31554711,2060.6,2059.1,0.55925832]
[1772772082800,0.31554711,2060.6,2059.1,0.56518963]
[1772772083506,0.33950121,2060.2,2059.1,0.56518963]
[1772772084205,0.33950121,2060.7,2059.1,0.56518963]
[1772772086902,0.31023042,2061.3,2059.6,0.55925832]
[1772772087106,0.31023042,2060.9,2059.6,0.55925832]
[1772772088807,0.24258,2061.0,2059.6,0.55925832]
[1772772089309,0.31401623,2060.9,2059.6,0.55925832]
[1772772089509,0.31401623,2060.7,2059.2,0.57744302]
[1772772089700,0.31401623,2060.9,2059.2,0.57744302]
[1772772089899,0.31401623,2061.1,2059.4,0.59223956]
[1772772090906,0.24261,2060.8,2059.4,0.59223956]
[1772772091305,0.31400527,2060.9,2059.4,0.59223956]
[1772772091506,0.00612164,2061.4,2059.4,0.59223956]
[1772772091709,0.31400527,2061.1,2059.4,0.59223956]
[1772772094008,0.31400527,2061.1,2059.6,0.59223956]
[1772772094214,0.00612164,2061.4,2059.9,0.59223956]
[1772772094409,0.00612164,2061.4,2060.3,0.59223956]
[1772772094608,0.00612164,2061.4,2060.2,6.21265]
[1772772094609,0.33360012,2062.2,2060.6,0.59223956]
[1772772095005,0.33360012,2062.2,2060.2,0.59223956]
[1772772095205,0.33360012,2061.4,2059.8,0.59223956]
[1772772095512,0.33906041,2061.4,2059.8,0.59762155]
[1772772096714,0.13906041,2061.4,2060.0,0.59223956]
[1772772097912,0.13906041,2061.4,2060.1,0.59223956]
[1772772098213,0.39112378,2061.3,2060.1,0.59223956]
[1772772098514,0.00546029,2061.4,2060.1,0.59223956]
[1772772098715,0.15403407,2061.4,2060.1,0.59223956]
[1772772098910,0.15403407,2061.4,2060.2,0.59223956]
[1772772099906,0.00546029,2061.4,2060.2,0.59223956]
[1772772100111,0.00546029,2061.4,2060.3,0.59223956]
[1772772100811,0.24247,2062.0,2060.3,0.59223956]
[1772772101017,0.15498605,2061.9,2060.3,0.59223956]
[1772772101418,0.16044634,2062.3,2060.7,0.59223956]
[1772772101610,0.16044634,2062.2,2060.7,0.59223956]
[1772772102016,0.16589348,2062.2,2060.7,0.59223956]
[1772772102711,0.00544714,2062.2,2061.1,0.59223956]
[1772772102915,0.15972318,2062.2,2061.2,0.59223956]
[1772772103518,0.00544714,2062.2,2061.2,0.59223956]
[1772772104120,0.15972318,2062.2,2061.2,0.59223956]
[1772772104914,0.00544714,2062.2,2061.3,0.59223956]
[1772772105114,0.16205267,2062.2,2061.3,0.59816185]
[1772772105719,0.00544714,2062.2,2061.3,0.59816185]
[1772772107026,0.17083937,2062.2,2061.3,0.59816185]
[1772772107416,0.00544714,2062.2,2061.3,0.59816185]
[1772772107617,0.17083937,2063.0,2061.7,0.59223956]
[1772772108019,0.17083937,2062.6,2061.5,0.59223956]
[1772772108614,0.17446558,2062.6,2061.5,0.59223956]
[1772772109618,0.00362621,2062.6,2061.5,0.59223956]
[1772772110023,0.00362621,2062.6,2061.7,0.59223956]
[1772772110221,0.17682498,2062.6,2061.7,0.59223956]
[1772772110424,0.53957903,2063.9,2062.8,0.59223956]
[1772772111128,0.53957903,2063.5,2062.8,0.59223956]
[1772772111327,0.54535245,2063.5,2062.8,0.5965716]
[1772772111718,0.00577342,2063.5,2062.8,0.5965716]
[1772772112324,0.53957903,2064.0,2062.8,0.5965716]
[1772772112627,0.24221,2064.2,2062.8,0.5965716]
[1772772112828,0.78178903,2064.2,2062.8,0.5965716]
[1772772113226,5.95718,2064.7,2063.0,0.59223956]
[1772772113227,0.53957903,2064.7,2063.0,0.59223956]
[1772772113521,0.5452138,2064.7,2063.1,0.59223956]
[1772772113924,5.95515,2065.4,2063.3,2.8525539]
[1772772113925,0.53957903,2065.3,2063.3,2.8525539]
[1772772114229,0.53957903,2065.0,2063.4,0.59223956]
[1772772114427,0.53957903,2064.8,2063.4,0.59223956]
[1772772114631,0.53957903,2064.6,2063.4,0.59223956]
[1772772115024,0.00367028,2064.6,2063.4,0.59223956]
[1772772115831,0.53957903,2065.0,2063.4,0.59223956]
[1772772116025,0.53957903,2065.3,2063.4,0.59223956]
[1772772116429,0.53957903,2065.1,2063.4,0.59223956]
[1772772116933,0.54398782,2065.1,2063.4,0.59223956]
[1772772117228,0.00440879,2065.1,2063.8,0.59223956]
[1772772117531,0.54398782,2065.1,2063.8,0.59223956]
[1772772119630,0.00440879,2065.1,2063.8,0.59223956]
[1772772120435,0.5828905,2066.2,2064.6,0.57662348]
[1772772120637,0.5828905,2066.5,2064.8,0.57662348]
[1772772120933,0.5828905,2066.5,2064.7,6.19913]
[1772772120934,0.5828905,2066.5,2065.0,0.57662348]
[1772772121229,0.58650629,2066.5,2065.0,0.58267487]
[1772772121434,0.5828905,2066.4,2065.0,0.58267487]
[1772772122037,6.19741579,2066.5,2065.0,0.58267487]
[1772772122038,0.5828905,2066.2,2065.0,0.58267487]
[1772772122228,0.5828905,2066.4,2065.0,0.58267487]
[1772772122631,0.00361579,2066.5,2065.0,0.58267487]
[1772772122828,0.58650629,2066.5,2065.0,0.58267487]
[1772772123435,0.00361579,2066.5,2065.0,0.58267487]
[1772772123833,0.58650629,2066.5,2065.0,0.58267487]
[1772772127034,0.58650629,2066.5,2065.1,0.57662348]
[1772772127239,0.00361579,2066.5,2065.1,0.57662348]
[1772772127442,0.58650629,2066.5,2065.1,0.57662348]
[1772772137246,0.00361579,2066.5,2065.3,0.57662348]
[1772772137446,0.5828905,2066.9,2065.5,0.57662348]
[1772772138547,0.58648642,2066.9,2065.5,0.57662348]
[1772772141052,0.5828905,2066.5,2065.2,0.57662348]
[1772772142249,0.5828905,2066.1,2065.2,0.57662348]
[1772772143051,0.5828905,2066.1,2065.0,0.58267487]
[1772772143551,0.24197,2066.2,2065.0,0.58267487]
[1772772143552,0.50618981,2065.9,2065.0,0.00605139]
[1772772143849,0.50618981,2065.7,2064.6,0.57662348]
[1772772144053,11.77500957,2065.8,2063.9,0.57662348]
[1772772144054,5.9551,2065.4,2063.9,0.57662348]
[1772772144250,0.50013842,2065.1,2063.9,0.57662348]
[1772772144756,0.50013842,2065.1,2063.9,0.58093715]
[1772772144757,0.50462973,2065.1,2063.9,0.58093715]
[1772772144953,0.50462973,2065.1,2063.9,0.00431367]
[1772772144954,0.45758322,2064.9,2063.9,0.00431367]
[1772772145551,0.45758322,2064.9,2063.6,0.57662348]
[1772772145853,0.45758322,2064.7,2063.6,0.57662348]
[1772772146655,0.45758322,2064.7,2063.6,0.58056113]
[1772772150451,0.44274608,2065.0,2063.6,0.58056113]
[1772772151356,0.00449131,2065.1,2063.6,0.58056113]
[1772772151859,0.00449131,2065.1,2063.8,0.58945895]
[1772772152056,0.44723739,2066.0,2064.0,0.58945895]
[1772772152554,0.44723739,2066.0,2064.2,0.58945895]
[1772772152948,0.45092632,2066.0,2064.2,0.58945895]
[1772772153552,0.46503377,2066.0,2064.4,0.58945895]
[1772772154151,0.46503377,2066.0,2064.4,12.10645895]
[1772772154353,0.46503377,2066.0,2064.5,0.58945895]
[1772772156059,0.4630673,2065.7,2064.5,0.58945895]
[1772772158358,0.45452174,2065.9,2064.5,0.58945895]
[1772772161854,0.00368893,2066.0,2064.6,5.95707]
[1772772162055,0.00368893,2066.0,2064.7,0.58945895]
[1772772162363,0.45828517,2067.0,2064.9,0.58945895]
[1772772162564,0.45828517,2066.8,2064.9,0.58945895]
[1772772162860,0.45828517,2066.8,2065.3,0.58945895]
[1772772163357,0.4625586,2066.8,2065.3,0.59500501]
[1772772165464,0.4658913,2066.6,2065.3,0.59500501]
[1772772173364,0.4380685,2066.8,2065.3,0.59500501]
[1772772173571,0.43379507,2066.4,2065.3,0.59500501]
[1772772175973,0.49285543,2066.3,2065.3,0.59500501]
[1772772178273,0.5031134,2066.1,2065.3,0.00554606]
[1772772179872,0.5031134,2066.1,2065.3,0.56257706]
[1772772180574,0.46299164,2066.5,2065.3,0.56257706]
[1772772180775,0.46299164,2066.4,2065.3,0.56257706]
[1772772181376,0.46299164,2066.7,2065.5,0.557031]
[1772772181570,0.00427343,2066.8,2065.5,0.557031]
[1772772181770,0.46726507,2066.8,2065.5,0.557031]
[1772772181970,0.00427343,2066.8,2065.7,0.557031]
[1772772182365,0.46603041,2066.8,2065.7,0.557031]
[1772772183573,0.00427343,2066.8,2065.7,0.557031]
[1772772183976,0.46175698,2066.7,2065.4,0.557031]
[1772772184177,0.46175698,2066.5,2065.4,0.557031]
[1772772184678,0.00427343,2066.8,2065.4,0.557031]
[1772772184877,0.45424597,2066.8,2065.4,0.557031]
[1772772185173,0.45424597,2066.8,2065.5,0.557031]
[1772772185378,0.00427343,2066.8,2065.6,0.557031]
[1772772187676,0.00427343,2066.8,2065.8,0.56391373]
[1772772188376,0.45981921,2066.8,2065.8,0.56391373]
[1772772188580,0.00427343,2066.8,2065.8,0.56391373]
[1772772190382,0.45733351,2066.8,2065.8,0.56391373]
[1772772190577,0.00427343,2066.8,2065.8,0.56391373]
[1772772191284,0.45306008,2067.2,2065.8,0.56391373]
[1772772191683,0.45306008,2067.2,2065.9,0.56391373]
[1772772192281,0.45771186,2067.2,2065.9,0.56391373]
[1772772194989,0.44016309,2067.0,2065.9,0.56391373]
[1772772200987,0.44635782,2066.9,2065.9,0.56391373]
[1772772203589,0.44702643,2066.7,2065.9,0.56391373]
[1772772204887,0.44702643,2066.7,2065.5,0.57698114]
[1772772205092,0.44673355,2066.5,2065.5,0.57698114]
[1772772207194,0.68173875,2066.6,2065.5,0.57698114]
[1772772207393,0.43980875,2066.5,2065.5,0.57698114]
[1772772212497,3.95607552,2067.0,2065.5,0.57698114]
[1772772212691,0.42020609,2066.8,2065.5,0.57698114]
[1772772212892,0.42020609,2066.6,2065.5,0.57698114]
[1772772226313,0.41967463,2066.4,2065.3,0.56584896]
[1772772226512,0.41967463,2066.2,2065.3,0.56584896]
[1772772226910,0.24198,2066.1,2065.3,0.56584896]
[1772772227212,0.41967463,2066.0,2065.3,0.56584896]
[1772772229013,0.24198,2066.1,2065.3,0.56584896]
[1772772229209,0.63164679,2066.1,2065.3,0.56584896]
[1772772229611,0.38966679,2066.4,2065.3,0.56584896]
[1772772229815,6.04691527,2066.3,2065.3,0.56584896]
[1772772230115,0.38966679,2066.3,2065.3,0.56584896]
[1772772230817,0.3885143,2066.5,2065.3,0.56584896]
[1772772231412,0.3885143,2066.8,2065.3,0.56584896]
[1772772231612,0.3885143,2066.6,2065.3,0.56584896]
[1772772232314,0.38658328,2066.8,2065.7,0.5603029]
[1772772233109,0.24187,2067.1,2065.7,0.5603029]
[1772772233110,0.38658328,2067.0,2065.7,0.5603029]
[1772772233312,6.04842284,2066.9,2065.7,0.5603029]
[1772772233518,0.38658328,2066.9,2065.7,0.5603029]
[1772772235113,0.38689765,2067.1,2065.7,0.5603029]
[1772772238513,0.38628759,2066.9,2065.7,0.5603029]
[1772772240516,0.3829931,2067.1,2065.7,0.5603029]
[1772772242021,0.3829931,2067.1,2065.9,0.54791605]
[1772772242421,0.3829931,2067.1,2066.0,11.156]
[1772772242621,0.00465178,2067.2,2066.1,0.54791605]
[1772772242822,0.3869314,2067.2,2066.1,0.54791605]
[1772772248029,0.00465178,2067.2,2066.1,0.54791605]
[1772772249725,0.00465178,2067.2,2066.3,0.54791605]
[1772772250522,0.44156363,2067.5,2066.3,0.54791605]
[1772772250727,0.44962191,2067.7,2066.3,0.54791605]
[1772772251526,0.45409986,2067.7,2066.3,0.54791605]
[1772772252325,0.2,2068.0,2066.5,0.55972623]
[1772772252525,0.65088843,2068.0,2066.7,0.55972623]
[1772772252726,0.65088843,2068.0,2066.9,0.55972623]
[1772772253320,0.65659491,2068.0,2066.9,0.56488095]
[1772772253519,0.20570648,2068.0,2066.9,0.56488095]
[1772772253720,0.45088843,2068.7,2067.1,0.55972623]
[1772772253926,0.45088843,2068.3,2067.1,0.55972623]
[1772772254729,0.45447658,2068.3,2067.1,0.55972623]
[1772772257324,0.00358815,2068.3,2067.1,0.55972623]
[1772772258826,0.45591653,2068.7,2067.1,0.55972623]
[1772772259026,0.45591653,2068.7,2067.3,0.55972623]
[1772772259226,0.45591653,2068.7,2067.5,0.55972623]
[1772772259433,0.45591653,2068.7,2067.7,0.55972623]
[1772772259625,0.45950468,2069.1,2067.7,0.55972623]
[1772772259830,0.46554742,2069.1,2067.7,0.55972623]
[1772772260030,0.00604274,2069.1,2067.9,0.55972623]
[1772772261334,0.00604274,2069.1,2068.1,0.55972623]
[1772772261732,0.46728277,2069.1,2068.1,0.55972623]
[1772772263232,0.00604274,2069.1,2068.1,0.55972623]
[1772772264140,0.45019133,2069.1,2068.1,0.55972623]
[1772772264345,0.00604274,2069.1,2068.1,0.55972623]
[1772772269545,0.38002536,2069.6,2068.1,0.55972623]
[1772772270042,11.28579108,2069.7,2068.0,0.24176]
[1772772270043,0.93079108,2069.7,2068.4,5.94623]
[1772772270242,0.38021981,2070.0,2068.7,0.54468773]
[1772772270446,0.38021981,2070.0,2068.7,0.55012954]
[1772772270447,0.38482927,2070.0,2068.7,0.55012954]
[1772772270646,0.00460946,2070.0,2068.9,0.54468773]
[1772772271147,0.38346271,2070.0,2068.9,0.54468773]
[1772772272141,0.37885325,2069.9,2068.9,0.54468773]
[1772772272843,0.37885325,2069.9,2068.7,0.00544181]
[1772772272844,0.36296701,2069.7,2068.7,0.55012954]
[1772772278347,0.32046511,2069.5,2068.7,0.00544181]
[1772772278545,0.32046511,2069.5,2068.7,0.55012954]
[1772772280751,0.32597485,2069.3,2068.5,0.54468773]
[1772772281054,0.32053304,2069.1,2067.9,0.54468773]
[1772772281753,0.32053304,2068.9,2067.9,0.55086116]
[1772772284053,0.32828981,2069.1,2067.9,0.55086116]
[1772772285360,0.32274609,2069.3,2067.9,0.55086116]
[1772772285959,0.32274609,2069.5,2067.9,0.55086116]
[1772772286359,5.97098575,2069.4,2067.9,0.55086116]
[1772772286561,0.32274609,2069.4,2067.9,0.55086116]
[1772772286967,0.32274609,2069.4,2068.1,0.54468773]
[1772772290161,0.32475629,2069.2,2068.1,0.54468773]
[1772772291059,0.32541216,2069.0,2068.1,0.54468773]
[1772772295165,0.31997177,2069.2,2068.1,0.54468773]
[1772772297966,0.32229091,2069.5,2068.1,0.54468773]
[1772772299871,0.32229091,2069.5,2068.3,0.57911059]
[1772772300070,0.32229091,2069.5,2067.9,0.00617343]
[1772772300071,0.32185758,2069.7,2068.5,0.57911059]
[1772772300371,0.32185758,2069.9,2068.7,0.57911059]
[1772772300571,0.32046405,2069.8,2068.9,0.57911059]
[1772772301169,0.32507351,2070.0,2068.9,0.57911059]
[1772772301370,0.32046405,2069.8,2068.9,0.57911059]
[1772772303372,0.32046405,2069.8,2069.0,0.57911059]
[1772772304374,0.32046405,2069.8,2068.6,0.57911059]
[1772772306271,0.5655615,2069.6,2068.6,0.57911059]
[1772772309564,0.5655615,2069.4,2068.6,0.57911059]
[1772772311074,0.5655615,2069.8,2068.6,0.57911059]
[1772772311277,0.5655615,2069.6,2068.6,0.57911059]
[1772772312477,0.5655615,2069.4,2068.6,0.57911059]
[1772772312678,0.5655615,2069.4,2068.4,0.57911059]
[1772772321379,0.5655615,2069.7,2068.5,0.57911059]
[1772772322779,0.5655615,2069.9,2068.5,0.57911059]
[1772772322987,0.5655615,2069.7,2068.5,0.57911059]
[1772772323785,0.5655615,2069.9,2068.9,0.57911059]
[1772772323985,0.5655615,2069.9,2069.0,0.57911059]
[1772772326795,0.5655615,2069.7,2068.6,0.57911059]
[1772772326990,0.5655615,2069.5,2068.6,0.57911059]
[1772772329896,0.58660528,2069.9,2068.6,0.57911059]
[1772772330196,0.55707845,2069.7,2068.6,0.57911059]
[1772772337507,0.55707845,2069.9,2068.9,0.59368348]
[1772772337899,0.00460946,2070.0,2069.0,0.59368348]
[1772772338497,0.55707845,2070.3,2069.3,0.59368348]
[1772772338911,0.55707845,2070.7,2069.3,0.59368348]
[1772772339200,0.55707845,2070.5,2069.3,0.59368348]
[1772772339606,0.56099378,2070.5,2069.3,0.59368348]
[1772772340804,0.55707845,2070.3,2069.3,0.59368348]
[1772772342506,0.56099378,2070.5,2069.3,0.59368348]
[1772772342706,0.56099378,2070.5,2069.5,0.59368348]
[1772772342908,0.56099378,2070.5,2069.7,0.59368348]
[1772772343306,0.00391533,2070.5,2069.7,0.59368348]
[1772772344309,0.56099378,2070.5,2069.7,0.59368348]
[1772772344614,0.00391533,2070.5,2069.7,0.59368348]
[1772772346110,0.56099378,2070.5,2069.7,0.59368348]
[1772772348117,0.00391533,2070.5,2069.7,0.59368348]
[1772772350017,0.56099378,2070.5,2069.7,0.59368348]
[1772772350413,0.00391533,2070.5,2069.7,0.59368348]
[1772772350918,0.55707845,2070.9,2069.7,0.59368348]
[1772772351717,0.56066478,2070.9,2069.7,0.59368348]
[1772772352019,0.56066478,2070.9,2069.8,0.59368348]
[1772772355621,0.55707845,2070.5,2069.5,0.59793106]
[1772772355818,0.55707845,2070.3,2069.5,0.00424758]
[1772772357114,0.55707845,2070.3,2069.5,0.59793106]
[1772772360418,0.55707845,2070.3,2069.5,0.00424758]
[1772772360622,0.55707845,2070.3,2069.5,0.00033225]
[1772772362021,0.55988815,2069.9,2069.5,0.00033225]
[1772772362323,0.55988815,2069.9,2068.9,0.54433687]
[1772772362527,0.55988815,2069.7,2068.5,0.54433687]
[1772772363123,0.55988815,2069.7,2068.5,0.54847349]
[1772772364325,0.55988815,2069.5,2068.5,0.00413662]
[1772772364728,0.55988815,2069.3,2068.2,0.54433687]
[1772772365824,0.55988815,2068.9,2067.8,0.54433687]
[1772772366835,0.55988815,2068.9,2067.8,0.54975667]
[1772772373733,0.55988815,2069.2,2067.9,0.24177]
[1772772373939,0.55988815,2069.2,2068.0,0.54433687]
[1772772374237,0.00501645,2069.3,2068.2,0.54433687]
[1772772374238,0.5649046,2069.3,2068.2,0.54433687]
[1772772374432,0.5649046,2069.3,2068.4,0.54433687]
[1772772375439,0.5649046,2069.3,2067.9,0.54433687]
[1772772376339,0.55988815,2069.2,2067.9,0.54433687]
[1772772378338,0.55988815,2069.0,2067.9,0.54433687]
[1772772378539,0.55988815,2068.8,2067.8,0.0054198]
[1772772379039,0.55988815,2068.8,2067.8,0.54975667]
[1772772379636,0.55988815,2068.6,2067.8,0.0054198]
[1772772379840,0.55988815,2068.4,2067.4,0.54433687]
[1772772380544,0.55988815,2068.4,2067.2,0.54433687]
[1772772380734,0.55988815,2068.4,2067.2,0.54828648]
[1772772380939,5.94551,2068.7,2067.2,0.54828648]
[1772772380940,0.55988815,2068.2,2067.2,0.54828648]
[1772772382440,0.55988815,2068.8,2067.2,0.54828648]
[1772772383035,0.55988815,2068.8,2067.4,0.54433687]
[1772772383642,0.55988815,2068.8,2067.6,0.54433687]
[1772772384342,0.55988815,2068.8,2067.8,0.54433687]
[1772772384544,0.55988815,2069.2,2067.8,0.54433687]
[1772772385638,0.55988815,2069.2,2067.9,0.54433687]
[1772772387941,0.55988815,2069.0,2067.6,0.54433687]
[1772772388140,12.08054168,2069.1,2067.6,0.54433687]
[1772772388141,0.55988815,2068.8,2067.6,0.54433687]
[1772772389247,0.55988815,2068.6,2067.6,0.54433687]